bitfinex/quotes_BTCUSD_20220303
["timestamp","ask_amount","ask_price","bid_price","bid_amount"]
[1646337306622,0.10174702,42278.0,42275.0,0.03851953]
[1646337306824,0.10174702,42278.0,42275.0,0.04051953]
[1646337307524,0.00015868,42280.0,42275.0,0.04051953]
[1646337307723,0.00047604,42280.0,42275.0,0.04051953]
[1646337308124,0.00031736,42280.0,42275.0,0.03851953]
[1646337308373,0.10174702,42282.0,42276.0,0.31591282]
[1646337308572,0.10174702,42282.0,42277.0,0.01067757]
[1646337309074,0.00015869,42280.0,42277.0,0.01067757]
[1646337309274,0.00031738,42280.0,42279.0,0.0115635]
[1646337309474,0.00047607,42280.0,42279.0,0.01020835]
[1646337309676,0.00047607,42280.0,42276.0,0.3]
[1646337309874,0.00015869,42280.0,42279.0,0.01284892]
[1646337310075,0.10174702,42282.0,42277.0,0.01439908]
[1646337310274,0.10174702,42282.0,42279.0,0.059166]
[1646337310676,0.29888692,42291.0,42281.0,0.01507463]
[1646337310876,0.28770151,42291.0,42281.0,0.01507463]
[1646337311073,0.1030162,42291.0,42281.0,0.01507463]
[1646337311277,0.00190377,42291.0,42281.0,0.01507463]
[1646337311477,0.00190377,42291.0,42288.0,0.07410092]
[1646337311675,0.00063459,42291.0,42288.0,0.13325292]
[1646337311875,0.00063459,42291.0,42289.0,0.662179]
[1646337312135,0.4504,42312.0,42292.0,0.01360007]
[1646337312136,0.11356702,42308.0,42292.0,0.01360007]
[1646337312332,0.3153,42310.0,42294.0,0.118274]
[1646337312333,0.10174702,42300.0,42294.0,0.118274]
[1646337312533,0.08674702,42300.0,42296.0,0.01578633]
[1646337312731,0.00057458,42298.0,42296.0,0.01578633]
[1646337312931,0.00114916,42298.0,42296.0,0.01578633]
[1646337313135,0.00172374,42298.0,42291.0,0.0122636]
[1646337313334,0.00114916,42298.0,42295.0,0.177415]
[1646337313535,0.00057458,42298.0,42295.0,0.19316169]
[1646337313735,0.08674702,42300.0,42295.0,0.1904728]
[1646337313935,0.08674702,42300.0,42295.0,0.19086098]
[1646337314135,0.10783202,42301.0,42296.0,0.01594732]
[1646337314136,0.00014366,42299.0,42296.0,0.01594732]
[1646337314336,0.00043098,42299.0,42296.0,0.01594732]
[1646337314737,0.00043098,42299.0,42292.0,0.12881986]
[1646337314937,0.00028732,42299.0,42292.0,0.118279]
[1646337315137,0.10783202,42301.0,42292.0,0.118279]
[1646337315438,0.10783202,42301.0,42292.0,0.01516225]
[1646337315641,0.08674702,42300.0,42292.0,0.059147]
[1646337315881,0.25958254,42293.0,42291.0,0.002]
[1646337316678,0.09728202,42293.0,42288.0,0.01491412]
[1646337316879,0.08674702,42297.0,42286.0,0.303]
[1646337317079,0.08674702,42297.0,42291.0,0.059147]
[1646337317379,0.00012476,42294.0,42291.0,0.059147]
[1646337317577,0.00037428,42294.0,42291.0,0.059147]
[1646337317777,0.00037428,42294.0,42292.0,0.362179]
[1646337317979,0.0871284,42293.0,42291.0,0.059147]
[1646337318183,0.0871284,42293.0,42292.0,0.362179]
[1646337318979,0.0871284,42293.0,42292.0,0.366179]
[1646337319524,0.0871284,42293.0,42292.0,0.004]
[1646337319928,0.7386784,42293.0,42292.0,0.004]
[1646337320328,0.7386784,42293.0,42280.0,0.0142815]
[1646337320527,0.08674702,42281.0,42273.0,0.01369564]
[1646337320728,0.0473,42280.0,42273.0,0.01513656]
[1646337320929,0.25932396,42280.0,42269.0,0.01253163]
[1646337321123,0.25932396,42280.0,42271.0,0.01524823]
[1646337321330,0.25932396,42280.0,42272.0,0.13206542]
[1646337322126,0.25948549,42280.0,42271.0,0.01289476]
[1646337322329,0.08674702,42275.0,42270.0,0.00028266]
[1646337322527,0.0473,42274.0,42271.0,0.37799933]
[1646337322723,0.0473,42274.0,42270.0,0.00042399]
[1646337322925,0.0473,42274.0,42270.0,0.00028266]
[1646337323125,0.0473,42274.0,42269.0,0.01567485]
[1646337323387,0.0473,42274.0,42271.0,0.3757007]
[1646337323583,0.0473,42274.0,42270.0,0.00014133]
[1646337323984,0.0473,42274.0,42270.0,0.00042399]
[1646337324482,0.0473,42274.0,42270.0,0.00028266]
[1646337324886,0.0473,42274.0,42270.0,0.00014133]
[1646337325185,0.0473,42274.0,42270.0,0.00514133]
[1646337325584,0.0473,42274.0,42270.0,0.00528266]
[1646337325784,0.0473,42274.0,42270.0,0.00542399]
[1646337326185,0.0473,42274.0,42270.0,0.00028266]
[1646337326384,0.0473,42274.0,42269.0,0.1]
[1646337326586,0.0473,42274.0,42270.0,0.0001212]
[1646337326784,0.08674702,42271.0,42270.0,0.0001212]
[1646337327022,0.15553596,42271.0,42270.0,0.0001212]
[1646337327223,0.15553596,42271.0,42270.0,0.0002424]
[1646337327224,0.80708596,42271.0,42270.0,0.0002424]
[1646337327426,1.25425,42270.0,42265.0,0.002]
[1646337327624,0.1457876,42269.0,42265.0,0.002]
[1646337327821,0.08674702,42266.0,42265.0,0.002]
[1646337328024,0.43829702,42266.0,42265.0,0.002]
[1646337328220,0.43829702,42266.0,42257.0,0.01211405]
[1646337328221,0.11463354,42262.0,42257.0,0.01371328]
[1646337328422,0.0473,42261.0,42253.0,0.29963256]
[1646337328624,0.0473,42261.0,42257.0,0.01044289]
[1646337328820,0.13404702,42261.0,42253.0,0.29963256]
[1646337329020,0.13404702,42261.0,42257.0,0.01055441]
[1646337329224,0.0473,42261.0,42253.0,0.29963256]
[1646337329422,0.0473,42261.0,42253.0,0.31340589]
[1646337329620,0.08674702,42260.0,42255.0,0.01416399]
[1646337329822,0.15730621,42259.0,42256.0,0.0147002]
[1646337330021,0.15730621,42259.0,42256.0,0.01225663]
[1646337330224,0.15730621,42259.0,42256.0,0.01535971]
[1646337330424,0.08674702,42257.0,42253.0,0.29963256]
[1646337330623,0.35155,42256.0,42253.0,0.29963256]
[1646337330879,0.28467603,42254.0,42253.0,0.29963256]
[1646337331077,0.43829702,42254.0,42253.0,0.29963256]
[1646337331674,0.73829702,42254.0,42253.0,0.29963256]
[1646337331875,0.83085702,42254.0,42253.0,0.29963256]
[1646337332076,0.83085702,42254.0,42252.0,0.0021]
[1646337332077,0.95,42253.0,42252.0,0.0021]
[1646337332273,1.2973,42253.0,42252.0,0.00182]
[1646337332477,0.30425,42252.0,42251.0,7.9e-07]
[1646337332673,0.66338,42252.0,42251.0,7.9e-07]
[1646337332873,0.65155,42252.0,42251.0,7.9e-07]
[1646337333078,0.65155,42252.0,42250.0,1.58e-06]
[1646337333274,0.69099702,42251.0,42250.0,1.58e-06]
[1646337333474,0.30425,42250.0,42236.0,0.01439588]
[1646337333677,0.65155,42249.0,42236.0,0.0032]
[1646337333879,0.20807591,42241.0,42236.0,0.0015]
[1646337334077,0.30425,42238.0,42236.0,0.0015]
[1646337334276,0.0473,42237.0,42236.0,0.0015]
[1646337335528,0.65155,42237.0,42236.0,0.0015]
[1646337336728,0.65155,42237.0,42236.0,0.0011]
[1646337336929,0.65155,42237.0,42234.0,9.79e-06]
[1646337336930,0.65655,42237.0,42234.0,9.79e-06]
[1646337337129,0.66838,42237.0,42234.0,9.79e-06]
[1646337337328,0.08674702,42235.0,42234.0,0.00013979]
[1646337337528,0.08674702,42235.0,42227.0,0.0032]
[1646337337529,0.18128553,42234.0,42227.0,0.0032]
[1646337337727,0.36338,42233.0,42227.0,0.0032]
[1646337337929,0.49452822,42229.0,42227.0,0.0032]
[1646337338276,0.60957822,42229.0,42227.0,0.0032]
[1646337338879,0.61557822,42229.0,42227.0,0.0032]
[1646337340078,0.60957822,42229.0,42227.0,0.0032]
[1646337340878,0.61457822,42229.0,42227.0,0.0032]
[1646337341479,0.61457822,42229.0,42224.0,0.0043]
[1646337341480,0.31032822,42229.0,42224.0,0.0043]
[1646337341687,1.47127043,42225.0,42220.0,0.01844895]
[1646337341880,0.08674702,42221.0,42220.0,0.0033]
[1646337342129,0.73829702,42221.0,42220.0,0.0033]
[1646337342325,0.43829702,42221.0,42220.0,0.0033]
[1646337342528,0.54618745,42221.0,42220.0,0.0033]
[1646337342928,0.55018745,42221.0,42220.0,0.0033]
[1646337343729,0.44229702,42221.0,42220.0,0.0033]
[1646337344333,0.43829702,42221.0,42220.0,0.0033]
[1646337345461,0.43829702,42221.0,42220.0,0.01570221]
[1646337345630,0.43829702,42221.0,42220.0,0.0033]
[1646337346081,0.61063744,42221.0,42220.0,0.0033]
[1646337346274,0.43829702,42221.0,42220.0,0.0033]
[1646337346878,0.44329702,42221.0,42220.0,0.0033]
[1646337347877,0.47956731,42221.0,42220.0,0.0033]
[1646337348276,0.47456731,42221.0,42220.0,0.0033]
[1646337349079,0.43829702,42221.0,42220.0,0.0033]
[1646337349575,0.43829702,42221.0,42220.0,0.0011]
[1646337350567,0.62737759,42221.0,42220.0,0.0011]
[1646337350766,0.43829702,42221.0,42220.0,0.0011]
[1646337351769,0.35155,42221.0,42220.0,0.0011]
[1646337352375,0.08674702,42235.0,42220.0,0.0011]
[1646337352572,0.08674702,42235.0,42221.0,0.11795261]
[1646337352573,0.27434702,42235.0,42221.0,0.11795261]
[1646337352973,0.1748168,42231.0,42222.0,2.74436294]
[1646337353174,0.48160458,42235.0,42222.0,2.74436294]
[1646337353374,0.09636895,42232.0,42223.0,0.39317661]
[1646337353575,0.09636895,42232.0,42224.0,0.00012924]
[1646337354174,0.09636895,42232.0,42224.0,0.00038772]
[1646337354678,0.09636895,42232.0,42224.0,0.00012924]
[1646337354874,0.09636895,42232.0,42224.0,0.003]
[1646337355276,0.30425,42231.0,42226.0,0.00012923]
[1646337355774,0.09636895,42232.0,42226.0,0.00038769]
[1646337355974,0.30425,42231.0,42226.0,0.00038769]
[1646337356175,0.06328172,42236.0,42226.0,0.00025846]
[1646337356380,0.30425,42235.0,42226.0,0.00012923]
[1646337356575,0.30425,42239.0,42223.0,0.02368]
[1646337356774,0.30425,42239.0,42229.0,0.00011776]
[1646337357031,0.25,42234.0,42221.0,0.11795261]
[1646337357232,0.30425,42226.0,42221.0,0.11795261]
[1646337357428,0.30425,42224.0,42221.0,0.11795261]
[1646337357828,0.15712233,42223.0,42221.0,0.11795261]
[1646337358127,0.30425,42222.0,42221.0,0.11795261]
[1646337358328,0.68829702,42222.0,42221.0,0.11795261]
[1646337358530,0.98829702,42222.0,42221.0,0.11795261]
[1646337358726,0.68829702,42222.0,42221.0,0.11795261]
[1646337358927,0.69129702,42222.0,42221.0,0.11795261]
[1646337359526,0.99129702,42222.0,42221.0,0.11795261]
[1646337360329,0.98829702,42222.0,42221.0,0.11795261]
[1646337360968,0.99129702,42222.0,42221.0,0.11795261]
[1646337361168,0.69129702,42222.0,42221.0,0.11795261]
[1646337361371,0.35455,42222.0,42221.0,0.11795261]
[1646337362168,0.54301245,42222.0,42221.0,0.11795261]
[1646337362371,0.35155,42222.0,42221.0,0.11795261]
[1646337363869,0.30425,42222.0,42221.0,0.11795261]
[1646337364268,0.08674702,42225.0,42221.0,0.11795261]
[1646337364269,0.30425,42224.0,42221.0,0.11795261]
[1646337364732,0.30425,42222.0,42221.0,0.11795261]
[1646337365531,0.60307525,42222.0,42221.0,0.11795261]
[1646337365932,0.60307525,42222.0,42220.0,0.0011]
[1646337366232,0.29882525,42222.0,42220.0,0.0011]
[1646337366730,0.59882525,42222.0,42220.0,0.0011]
[1646337366931,0.3,42221.0,42220.0,0.0011]
[1646337367336,0.30482525,42222.0,42220.0,0.0011]
[1646337367535,0.60482525,42222.0,42220.0,0.0011]
[1646337367732,0.3,42221.0,42220.0,0.0011]
[1646337368779,0.54000001,42221.0,42220.0,0.0011]
[1646337368978,0.54500001,42221.0,42220.0,0.0011]
[1646337369576,0.9011,42220.0,42201.0,0.1265]
[1646337369780,0.47019409,42213.0,42206.0,0.001]
[1646337369983,0.30425,42207.0,42206.0,0.001]
[1646337370181,0.30425,42207.0,42202.0,0.0022]
[1646337370182,0.20352558,42206.0,42202.0,0.0022]
[1646337370378,0.43829702,42205.0,42202.0,0.0022]
[1646337370779,0.30425,42203.0,42200.0,0.0023]
[1646337370978,0.30425,42203.0,42192.0,0.001]
[1646337370979,0.08674702,42201.0,42192.0,0.001]
[1646337371179,0.35155,42200.0,42192.0,0.001]
[1646337371379,0.08674702,42198.0,42192.0,0.001]
[1646337371580,0.0473,42198.0,42192.0,0.001]
[1646337371778,0.12096702,42198.0,42192.0,0.001]
[1646337372038,0.12096702,42198.0,42188.0,4.17e-06]
[1646337372039,1.25425,42197.0,42188.0,4.17e-06]
[1646337372238,0.25,42194.0,42193.0,4.17e-06]
[1646337372433,0.97521702,42194.0,42193.0,4.17e-06]
[1646337372735,0.97521702,42194.0,42193.0,8.34e-06]
[1646337372932,0.30425,42193.0,42188.0,4.17e-06]
[1646337373131,0.57862956,42189.0,42188.0,4.17e-06]
[1646337373334,0.62592956,42189.0,42188.0,4.17e-06]
[1646337374532,1.34582956,42189.0,42188.0,4.17e-06]
[1646337374732,1.04157956,42189.0,42188.0,4.17e-06]
[1646337375433,0.84086702,42189.0,42188.0,4.17e-06]
[1646337375882,0.7672,42189.0,42188.0,4.17e-06]
[1646337377682,0.7199,42189.0,42188.0,0.36218317]
[1646337378881,0.7199,42189.0,42188.0,4.17e-06]
[1646337379721,0.7199,42189.0,42188.0,0.36218317]
[1646337381727,0.7199,42189.0,42188.0,4.17e-06]
[1646337382525,0.7199,42189.0,42188.0,0.36218317]
[1646337383378,0.04090546,42189.0,42188.0,0.36218317]
[1646337383580,0.5786,42208.0,42191.0,0.02368]
[1646337383581,0.01184,42205.0,42191.0,0.02368]
[1646337383883,0.07366702,42215.0,42195.0,0.362478]
[1646337383884,0.24000001,42198.0,42195.0,0.362478]
[1646337384083,0.24000001,42198.0,42197.0,0.362478]
[1646337384478,0.23500001,42198.0,42197.0,0.36331848]
[1646337385078,0.23500001,42198.0,42197.0,0.42258557]
[1646337385477,0.23500001,42198.0,42197.0,0.72258557]
[1646337385880,0.18550001,42198.0,42197.0,1.44238557]
[1646337386078,0.01183,42219.0,42199.0,0.7198]
[1646337386277,0.01183,42219.0,42196.0,0.01183]
[1646337386278,0.17819202,42218.0,42201.0,0.05926027]
[1646337386477,0.17819202,42218.0,42202.0,0.362478]
[1646337386678,0.17819202,42218.0,42204.0,0.362478]
[1646337386881,0.11494231,42209.0,42204.0,0.362478]
[1646337387135,0.11494231,42209.0,42206.0,0.362478]
[1646337387336,0.17819202,42218.0,42199.0,0.3]
[1646337387537,0.17819202,42218.0,42200.0,0.362478]
[1646337387733,0.06265208,42212.0,42200.0,0.362478]
[1646337388434,0.08792039,42209.0,42200.0,0.362478]
[1646337388632,0.17819202,42218.0,42200.0,0.362478]
[1646337389632,0.06617821,42212.0,42200.0,0.362478]
[1646337389836,0.09878717,42207.0,42200.0,0.362478]
[1646337390635,0.17819202,42218.0,42200.0,0.362478]
[1646337390897,0.106307,42220.0,42200.0,1.14153915]
[1646337391093,0.106307,42220.0,42201.0,0.7671]
[1646337391292,0.106307,42220.0,42202.0,1.382278]
[1646337391293,0.094477,42220.0,42202.0,1.382278]
[1646337391492,0.094477,42220.0,42204.0,0.7198]
[1646337391797,0.17471421,42217.0,42205.0,0.709778]
[1646337391992,0.17471421,42217.0,42207.0,0.362478]
[1646337391993,0.21056579,42215.0,42207.0,0.362478]
[1646337392193,0.17471421,42217.0,42209.0,0.362478]
[1646337392594,0.10921482,42217.0,42209.0,0.362478]
[1646337392996,0.094477,42220.0,42211.0,0.362478]
[1646337393194,0.094477,42220.0,42213.0,0.362478]
[1646337393397,0.094477,42220.0,42215.0,0.421718]
[1646337393594,0.094477,42220.0,42217.0,0.362478]
[1646337393796,0.094477,42220.0,42217.0,0.386158]
[1646337393994,0.094477,42220.0,42219.0,0.36331848]
[1646337394195,0.094477,42220.0,42219.0,0.66331848]
[1646337395031,0.094477,42220.0,42219.0,0.686158]
[1646337395230,0.094477,42220.0,42219.0,1.512487]
[1646337395231,7.7e-05,42220.0,42219.0,1.512487]
[1646337395631,0.3792,42244.0,42222.0,0.02368]
[1646337395632,0.19304782,42237.0,42222.0,0.02368]
[1646337395831,0.19304782,42237.0,42223.0,0.362478]
[1646337396033,0.18145558,42232.0,42225.0,0.362478]
[1646337396229,0.18145558,42232.0,42227.0,0.362478]
[1646337396631,0.11335332,42232.0,42227.0,0.362478]
[1646337397029,0.11335332,42232.0,42227.0,0.366478]
[1646337397431,0.11351453,42232.0,42227.0,0.366478]
[1646337397632,0.11367574,42232.0,42227.0,0.366478]
[1646337397832,0.11383695,42232.0,42227.0,0.366478]
[1646337398288,0.11383695,42232.0,42227.0,0.362478]
[1646337398289,0.00016121,42232.0,42227.0,0.362478]
[1646337398486,0.00016121,42232.0,42227.0,0.5519045]
[1646337398689,0.16642091,42242.0,42227.0,0.4926815]
[1646337399088,0.16642091,42242.0,42227.0,0.4976815]
[1646337399089,0.06280223,42239.0,42227.0,0.4976815]
[1646337399286,0.00032234,42232.0,42227.0,1.2174815]
[1646337399486,0.00032234,42232.0,42227.0,0.4976815]
[1646337399487,0.00048351,42232.0,42227.0,0.4976815]
[1646337399700,0.00032234,42232.0,42227.0,0.4976815]
[1646337399888,0.00016117,42232.0,42227.0,0.4976815]
[1646337400088,0.16642091,42242.0,42227.0,0.4976815]
[1646337400289,0.1983843,42254.0,42233.0,0.02368]
[1646337400290,0.01183,42246.0,42233.0,0.02368]
[1646337400487,0.15,42252.0,42236.0,0.05920901]
[1646337400687,0.15,42252.0,42237.0,0.362478]
[1646337400888,0.00064457,42238.0,42237.0,0.362478]
[1646337401088,0.00193371,42238.0,42237.0,0.362478]
[1646337401488,0.00064457,42238.0,42237.0,0.421687]
[1646337401690,0.10379342,42247.0,42237.0,0.421687]
[1646337402132,0.06945695,42241.0,42237.0,0.362478]
[1646337402332,0.0908304,42240.0,42237.0,0.362478]
[1646337402530,0.09096141,42240.0,42237.0,0.362478]
[1646337402731,0.09109242,42240.0,42237.0,0.362478]
[1646337403133,0.09096141,42240.0,42237.0,0.362478]
[1646337403332,0.09069939,42240.0,42237.0,0.362478]
[1646337403534,0.09069939,42240.0,42232.0,0.005]
[1646337403535,0.32368,42239.0,42232.0,0.005]
[1646337403737,0.32368,42239.0,42233.0,0.362478]
[1646337403934,0.09069939,42240.0,42232.0,0.005]
[1646337403935,0.15,42238.0,42232.0,0.005]
[1646337404132,0.21352574,42238.0,42232.0,0.005]
[1646337404334,0.21352574,42238.0,42219.0,0.01183]
[1646337404533,0.11059103,42233.0,42220.0,0.362478]
[1646337404735,0.45,42232.0,42221.0,0.01183]
[1646337404933,0.45,42232.0,42222.0,0.362478]
[1646337405136,0.02368,42231.0,42222.0,0.362478]
[1646337405532,0.17750353,42225.0,42222.0,0.362478]
[1646337405798,0.17750353,42225.0,42220.0,0.005]
[1646337405799,0.17750353,42225.0,42223.0,0.362478]
[1646337405992,0.17750353,42225.0,42220.0,0.005]
[1646337406192,0.17750353,42225.0,42221.0,0.362478]
[1646337406595,0.17750353,42225.0,42220.0,0.005]
[1646337406791,0.02368,42224.0,42213.0,0.362478]
[1646337407192,0.02368,42224.0,42212.0,0.0235]
[1646337407193,0.17750353,42225.0,42222.0,0.362478]
[1646337407493,0.17761075,42225.0,42222.0,0.362478]
[1646337407692,0.17782519,42225.0,42223.0,0.362478]
[1646337408092,0.17761075,42225.0,42221.0,0.003]
[1646337408295,0.17761075,42225.0,42222.0,0.362478]
[1646337408496,0.17750353,42225.0,42222.0,0.362478]
[1646337409099,0.17750353,42225.0,42222.0,0.364478]
[1646337410329,0.17750353,42225.0,42222.0,0.362478]
[1646337410529,0.24741701,42226.0,42222.0,0.362478]
[1646337410831,0.000259,42226.0,42222.0,0.362478]
[1646337411031,0.000259,42226.0,42222.0,0.364478]
[1646337411032,0.0003885,42226.0,42222.0,0.364478]
[1646337411432,0.0001295,42226.0,42222.0,0.364478]
[1646337411634,0.15,42232.0,42222.0,0.364478]
[1646337411831,0.01183,42237.0,42222.0,0.364478]
[1646337412031,0.15,42236.0,42222.0,0.364478]
[1646337412231,0.0001295,42226.0,42222.0,0.364478]
[1646337412431,0.000259,42226.0,42222.0,0.362478]
[1646337412632,0.0003885,42226.0,42222.0,0.362478]
[1646337413033,0.0001295,42226.0,42222.0,0.362478]
[1646337413282,0.15,42229.0,42222.0,0.362478]
[1646337413283,0.17368,42229.0,42222.0,0.362478]
[1646337413483,0.15,42229.0,42222.0,0.362478]
[1646337414086,0.00028804,42226.0,42222.0,0.362478]
[1646337414286,0.00043206,42226.0,42222.0,0.362478]
[1646337414483,0.00028804,42226.0,42222.0,0.362478]
[1646337414684,0.00014402,42226.0,42222.0,0.362478]
[1646337414884,0.15,42228.0,42222.0,0.362478]
[1646337415083,0.15,42228.0,42222.0,0.365478]
[1646337415483,0.00014402,42226.0,42222.0,0.365478]
[1646337415686,0.00043206,42226.0,42222.0,0.365478]
[1646337416284,0.00014402,42226.0,42222.0,0.365478]
[1646337416485,0.15,42228.0,42222.0,0.362478]
[1646337416787,0.17368,42228.0,42222.0,0.362478]
[1646337417036,0.11407703,42223.0,42213.0,0.1206]
[1646337417231,0.11407703,42223.0,42212.0,0.0235]
[1646337417232,0.11407703,42223.0,42218.0,0.362478]
[1646337417630,0.11407703,42223.0,42217.0,0.003]
[1646337418031,0.30585305,42223.0,42218.0,0.36236]
[1646337418632,0.15,42221.0,42213.0,0.36236]
[1646337419032,0.15,42221.0,42213.0,0.36536]
[1646337420239,0.11507703,42223.0,42213.0,0.36536]
[1646337420436,0.00014064,42221.0,42213.0,0.36236]
[1646337420638,0.00042192,42221.0,42213.0,0.36236]
[1646337421084,0.00028128,42221.0,42213.0,0.36636]
[1646337421282,0.15,42224.0,42213.0,0.36636]
[1646337421482,0.15,42227.0,42213.0,0.36636]
[1646337421683,0.15,42230.0,42215.0,0.36236]
[1646337422283,0.00014064,42221.0,42215.0,0.36236]
[1646337422483,0.00014064,42221.0,42216.0,0.06526336]
[1646337422484,0.00028128,42221.0,42216.0,0.06526336]
[1646337422683,0.00042192,42221.0,42217.0,0.36236]
[1646337422883,0.00014064,42221.0,42217.0,0.36236]
[1646337423083,0.09002345,42228.0,42217.0,0.36236]
[1646337423483,0.16417966,42227.0,42217.0,0.36236]
[1646337423884,0.00012455,42221.0,42217.0,0.36236]
[1646337424089,0.00037365,42221.0,42217.0,0.36236]
[1646337424528,0.0002491,42221.0,42217.0,0.36236]
[1646337424735,0.16417966,42227.0,42217.0,0.36236]
[1646337425527,0.0002491,42221.0,42217.0,0.36236]
[1646337425728,0.00037365,42221.0,42217.0,0.36236]
[1646337426128,0.0002491,42221.0,42217.0,0.36236]
[1646337426331,0.16417966,42227.0,42217.0,0.36236]
[1646337426929,0.0001061,42221.0,42217.0,0.36236]
[1646337427130,0.29548186,42227.0,42217.0,0.36236]
[1646337427333,0.0001061,42221.0,42217.0,0.36236]
[1646337427931,0.15,42227.0,42217.0,0.36236]
[1646337428580,0.09002345,42228.0,42217.0,0.36236]
[1646337428777,0.1905696,42227.0,42217.0,0.36236]
[1646337429179,0.15,42230.0,42217.0,0.36236]
[1646337430180,0.16049901,42229.0,42217.0,0.36236]
[1646337430581,0.25086842,42230.0,42217.0,0.36236]
[1646337431179,0.25086842,42230.0,42217.0,0.36736]
[1646337431583,0.00016128,42226.0,42217.0,0.36736]
[1646337431783,0.00048384,42226.0,42217.0,0.36736]
[1646337432254,0.00032256,42226.0,42217.0,0.36736]
[1646337432454,0.00016128,42226.0,42217.0,0.36236]
[1646337432658,0.15,42230.0,42217.0,0.36236]
[1646337432858,0.31945915,42235.0,42217.0,0.421596]
[1646337433056,0.00016128,42224.0,42217.0,0.426596]
[1646337433260,0.00016128,42224.0,42220.0,0.02368]
[1646337433459,0.00064495,42234.0,42226.0,0.00032256]
[1646337433658,0.00064495,42234.0,42230.0,0.74348]
[1646337433659,0.0012899,42234.0,42230.0,0.74348]
[1646337433859,0.0012899,42234.0,42231.0,1.15314]
[1646337433860,0.00193485,42234.0,42231.0,1.15314]
[1646337434058,0.0012899,42234.0,42233.0,1.08300048]
[1646337434259,0.00064495,42234.0,42233.0,1.08300048]
[1646337434457,0.24526457,42247.0,42233.0,1.08300048]
[1646337434657,0.09526457,42247.0,42233.0,1.08216]
[1646337434857,0.15,42252.0,42233.0,1.10584]
[1646337435057,0.24000001,42240.0,42233.0,1.10584]
[1646337435261,0.24000001,42240.0,42233.0,1.165054]
[1646337436183,0.24000001,42240.0,42233.0,1.10584]
[1646337436583,0.00015068,42239.0,42233.0,1.10584]
[1646337436887,0.00015068,42239.0,42238.0,0.36236]
[1646337436888,0.00045204,42239.0,42238.0,0.36236]
[1646337437083,0.00045204,42239.0,42238.0,0.36320048]
[1646337437284,0.00030136,42239.0,42238.0,0.36320048]
[1646337437483,0.00015068,42239.0,42238.0,0.36320048]
[1646337437684,0.24000001,42240.0,42238.0,0.36320048]
[1646337437887,0.24000001,42240.0,42239.0,0.36320048]
[1646337438083,0.24000001,42240.0,42239.0,1.08300048]
[1646337439387,0.1837,42257.0,42242.0,0.36236]
[1646337439640,0.15,42262.0,42245.0,0.36236]
[1646337439641,0.01183,42261.0,42245.0,0.36236]
[1646337439839,0.5276,42267.0,42245.0,0.36236]
[1646337439840,0.0004551,42248.0,42247.0,0.36236]
[1646337440636,0.00038526,42248.0,42247.0,0.36320048]
[1646337440839,0.09396865,42259.0,42253.0,0.05919]
[1646337441035,0.09396865,42259.0,42254.0,0.36236]
[1646337442438,0.17872433,42255.0,42254.0,0.36236]
[1646337442638,0.09396865,42259.0,42254.0,0.36236]
[1646337442842,0.15,42257.0,42254.0,0.36236]
[1646337443491,0.24000001,42256.0,42254.0,0.36236]
[1646337445090,0.40315131,42256.0,42254.0,0.36236]
[1646337445490,0.24000001,42256.0,42254.0,0.36236]
[1646337447236,0.24000001,42256.0,42254.0,0.36436]
[1646337447636,0.21657251,42255.0,42254.0,0.36436]
[1646337448240,0.24025251,42255.0,42245.0,0.343915]
[1646337448437,0.15,42248.0,42244.0,0.01183]
[1646337448636,0.02368,42253.0,42245.0,0.3622]
[1646337448836,0.21638513,42247.0,42244.0,0.3622]
[1646337449036,0.15,42245.0,42244.0,0.3622]
[1646337451288,0.15,42245.0,42243.0,0.279403]
[1646337456434,0.15,42246.0,42243.0,0.279403]
[1646337458489,0.01183,42255.0,42243.0,0.279403]
[1646337458692,0.15,42249.0,42243.0,0.279403]
[1646337458888,0.01183,42259.0,42243.0,0.279403]
[1646337459088,0.00013982,42250.0,42243.0,0.279403]
[1646337459288,0.00027964,42250.0,42243.0,0.283403]
[1646337459489,0.00041946,42250.0,42243.0,0.283403]
[1646337459692,0.23915953,42247.0,42243.0,0.283403]
[1646337459888,0.23915953,42247.0,42246.0,0.502183]
[1646337460488,0.23915953,42247.0,42246.0,0.40472209]
[1646337460688,0.23915953,42247.0,42246.0,0.362183]
[1646337460889,0.23915953,42247.0,42244.0,0.279394]
[1646337461293,0.23915953,42247.0,42246.0,0.365183]
[1646337462136,0.23915953,42247.0,42246.0,0.505183]
[1646337462640,0.23915953,42247.0,42246.0,0.362183]
[1646337462837,0.23915953,42247.0,42246.0,0.40459971]
[1646337463036,0.23915953,42247.0,42246.0,0.52298471]
[1646337463436,0.23851821,42247.0,42246.0,0.81518599]
[1646337463638,0.15,42260.0,42248.0,0.34341315]
[1646337463941,0.35515938,42260.0,42250.0,0.362139]
[1646337464737,0.20117604,42256.0,42250.0,0.362139]
[1646337464937,0.15,42260.0,42250.0,0.362139]
[1646337465138,0.15,42257.0,42250.0,0.362139]
[1646337465439,0.0967708,42254.0,42250.0,0.362139]
[1646337467487,0.09689497,42254.0,42250.0,0.362139]
[1646337467792,0.09714331,42254.0,42250.0,0.362139]
[1646337467990,0.09701914,42254.0,42250.0,0.362139]
[1646337468286,0.0967708,42254.0,42250.0,0.362139]
[1646337469094,0.15,42253.0,42250.0,0.362139]
[1646337469545,0.18872326,42252.0,42250.0,0.362139]
[1646337469745,0.15,42253.0,42250.0,0.362139]
[1646337471347,0.15,42253.0,42250.0,0.364139]
[1646337472151,0.10547165,42252.0,42250.0,0.364139]
[1646337472750,0.10547165,42252.0,42250.0,0.002]
[1646337473153,0.10547165,42252.0,42247.0,0.28535542]
[1646337473384,0.30758136,42249.0,42247.0,0.28535542]
[1646337473586,0.15,42249.0,42248.0,0.3622]
[1646337475987,0.33028165,42249.0,42248.0,0.3622]
[1646337476588,0.49454495,42249.0,42248.0,0.3622]
[1646337477136,0.49454495,42249.0,42247.0,0.28535542]
[1646337477137,0.79454495,42249.0,42247.0,0.28535542]
[1646337477337,0.3,42248.0,42247.0,0.28535542]
[1646337477533,0.3473,42248.0,42247.0,0.28535542]
[1646337478033,0.0473,42248.0,42247.0,0.28535542]
[1646337479835,0.20765504,42248.0,42247.0,0.28035542]
[1646337480036,0.0473,42248.0,42247.0,0.28035542]
[1646337481086,0.145,42249.0,42247.0,0.28035542]